[Event "Titled Tuesday Blitz February 22 Early 2022"]
[White "Siva Mahadevan"]
[Black "Kozak, Antoni"]
[WhiteFideId "25043153"]
[BlackFideId "21832030"]
[WhiteElo "2203"]
[BlackElo "2232"]
[Result "0-1"]
[Round "09"]
[TimeControl "180+1"]
[Date "2022.02.22"]
[WhiteClock "0:00:08"]
[BlackClock "0:00:39"]

1. e4 {[%clk 0:02:59]}  c6 {[%clk 0:02:59]} 2. d4 {[%clk 0:02:59]}  d5 {[%clk 0:03:00]} 3. e5 {[%clk 0:03:00]}  Bf5 {[%clk 0:02:59]} 4. c4 {[%clk 0:03:00]}  e6 {[%clk 0:02:59]} 5. Nc3 {[%clk 0:03:00]}  Ne7 {[%clk 0:02:59]} 6. Nge2 {[%clk 0:03:00]}  Nd7 {[%clk 0:02:59]} 7. Ng3 {[%clk 0:02:59]}  Bg6 {[%clk 0:03:00]} 8. h4 {[%clk 0:02:59]}  h6 {[%clk 0:02:55]} 9. h5 {[%clk 0:02:59]}  Bh7 {[%clk 0:02:56]} 10. Be2 {[%clk 0:02:59]}  dxc4 {[%clk 0:02:31]} 11. Bxc4 {[%clk 0:03:00]}  c5 {[%clk 0:02:23]} 12. d5 {[%clk 0:02:24]}  exd5 {[%clk 0:02:22]} 13. Nxd5 {[%clk 0:02:25]}  Nb6 {[%clk 0:02:19]} 14. Bb5+ {[%clk 0:01:41]}  Nc6 {[%clk 0:02:19]} 15. Bxc6+ {[%clk 0:01:40]}  bxc6 {[%clk 0:02:19]} 16. Nc3 {[%clk 0:01:41]}  Qxd1+ {[%clk 0:02:16]} 17. Kxd1 {[%clk 0:01:40]}  O-O-O+ {[%clk 0:02:11]} 18. Ke2 {[%clk 0:01:41]}  Bd3+ {[%clk 0:02:08]} 19. Kf3 {[%clk 0:01:40]}  c4 {[%clk 0:02:06]} 20. Bf4 {[%clk 0:01:33]}  Bc5 {[%clk 0:02:04]} 21. Nge4 {[%clk 0:01:31]}  Bd4 {[%clk 0:02:03]} 22. Nd6+ {[%clk 0:01:31]}  Rxd6 {[%clk 0:01:49]} 23. exd6 {[%clk 0:01:31]}  Nd5 {[%clk 0:01:48]} 24. Bd2 {[%clk 0:01:17]}  Kd7 {[%clk 0:01:41]} 25. Rac1 {[%clk 0:01:13]}  Rb8 {[%clk 0:01:38]} 26. Na4 {[%clk 0:00:54]}  Kxd6 {[%clk 0:01:28]} 27. Bc3 {[%clk 0:00:37]}  Nxc3 {[%clk 0:01:22]} 28. bxc3 {[%clk 0:00:34]}  Bf6 {[%clk 0:01:22]} 29. Rcd1 {[%clk 0:00:21]}  Rb5 {[%clk 0:01:19]} 30. Rhe1 {[%clk 0:00:20]}  Kc7 {[%clk 0:01:15]} 31. g4 {[%clk 0:00:17]}  Bc2 {[%clk 0:01:13]} 32. Rc1 {[%clk 0:00:10]}  Bxa4 {[%clk 0:01:12]} 33. Re4 {[%clk 0:00:11]}  Rc5 {[%clk 0:01:04]} 34. Ke3 {[%clk 0:00:11]}  Bb5 {[%clk 0:01:04]} 35. f4 {[%clk 0:00:12]}  Rd5 {[%clk 0:01:04]} 36. a4 {[%clk 0:00:09]}  Rd3+ {[%clk 0:01:02]} 37. Ke2 {[%clk 0:00:09]}  Ba6 {[%clk 0:00:57]} 38. Re3 {[%clk 0:00:10]}  Rd5 {[%clk 0:00:52]} 39. Kf3 {[%clk 0:00:10]}  Ra5 {[%clk 0:00:51]} 40. Rg1 {[%clk 0:00:08]}  Bc8 {[%clk 0:00:49]} 41. Ke4 {[%clk 0:00:07]}  Be6 {[%clk 0:00:48]} 42. Reg3 {[%clk 0:00:06]}  Bd5+ {[%clk 0:00:41]} 43. Ke3 {[%clk 0:00:06]}  Rxa4 {[%clk 0:00:39]} 44. g5 {[%clk 0:00:06]}  Bxc3 {[%clk 0:00:39]} 45. f5 {[%clk 0:00:06]}  hxg5 {[%clk 0:00:38]} 46. Rxg5 {[%clk 0:00:07]}  Bf6 {[%clk 0:00:38]} 47. Rxg7 {[%clk 0:00:07]}  Bxg7 {[%clk 0:00:39]} 48. Rxg7 {[%clk 0:00:07]}  Ra3+ {[%clk 0:00:39]} 49. Kd4 {[%clk 0:00:08]}  Rh3 {[%clk 0:00:40]} 50. Rh7 {[%clk 0:00:08]}  Kd6 {[%clk 0:00:40]} 51. Rh6+ {[%clk 0:00:08]}  Kd7 {[%clk 0:00:39]} 0-1


[Site "https://www.chess.com"]

[Event "Titled Tuesday Blitz February 22 Early 2022"]
[White "Tay, Junior"]
[Black "Sailer, Mike"]
[WhiteFideId "5800439"]
[BlackFideId "2012901"]
[WhiteElo "2216"]
[BlackElo "2109"]
[Result "1/2-1/2"]
[Round "09"]
[TimeControl "180+1"]
[Date "2022.02.22"]
[WhiteClock "0:00:44"]
[BlackClock "0:00:10"]

1. Nc3 {[%clk 0:03:00]}  d5 {[%clk 0:02:57]} 2. e4 {[%clk 0:03:00]}  dxe4 {[%clk 0:02:58]} 3. f3 {[%clk 0:03:00]}  exf3 {[%clk 0:02:53]} 4. Nxf3 {[%clk 0:03:01]}  Nf6 {[%clk 0:02:53]} 5. d4 {[%clk 0:03:01]}  c6 {[%clk 0:02:51]} 6. Bd3 {[%clk 0:02:58]}  Bg4 {[%clk 0:02:51]} 7. O-O {[%clk 0:02:58]}  e6 {[%clk 0:02:52]} 8. Qe1 {[%clk 0:02:57]}  Nbd7 {[%clk 0:02:43]} 9. Ne5 {[%clk 0:02:53]}  Nxe5 {[%clk 0:02:36]} 10. dxe5 {[%clk 0:02:52]}  Nd5 {[%clk 0:02:36]} 11. Ne4 {[%clk 0:02:51]}  Bf5 {[%clk 0:02:28]} 12. Bg5 {[%clk 0:02:48]}  Qb6+ {[%clk 0:02:27]} 13. Kh1 {[%clk 0:02:48]}  h6 {[%clk 0:02:22]} 14. Bh4 {[%clk 0:02:30]}  Qe3 {[%clk 0:02:17]} 15. Nd6+ {[%clk 0:02:07]}  Bxd6 {[%clk 0:02:14]} 16. exd6 {[%clk 0:02:08]}  Qxe1 {[%clk 0:01:58]} 17. Raxe1 {[%clk 0:02:08]}  Bxd3 {[%clk 0:01:56]} 18. d7+ {[%clk 0:02:04]}  Kf8 {[%clk 0:01:17]} 19. cxd3 {[%clk 0:01:59]}  g5 {[%clk 0:01:12]} 20. Bf2 {[%clk 0:01:55]}  Ke7 {[%clk 0:01:10]} 21. Bc5+ {[%clk 0:01:54]}  Kxd7 {[%clk 0:01:04]} 22. Rxf7+ {[%clk 0:01:53]}  Ke8 {[%clk 0:01:00]} 23. Rxb7 {[%clk 0:01:50]}  Nf4 {[%clk 0:00:55]} 24. g3 {[%clk 0:01:46]}  Nxd3 {[%clk 0:00:54]} 25. Rxe6+ {[%clk 0:01:46]}  Kd8 {[%clk 0:00:53]} 26. Bxa7 {[%clk 0:01:34]}  Kc8 {[%clk 0:00:40]} 27. Ree7 {[%clk 0:01:33]}  Rxa7 {[%clk 0:00:31]} 28. Rxa7 {[%clk 0:01:32]}  Kb8 {[%clk 0:00:32]} 29. Reb7+ {[%clk 0:01:33]}  Kc8 {[%clk 0:00:33]} 30. Ra8+ {[%clk 0:01:31]}  Kxb7 {[%clk 0:00:33]} 31. Rxh8 {[%clk 0:01:32]}  Nxb2 {[%clk 0:00:34]} 32. Rxh6 {[%clk 0:01:32]}  c5 {[%clk 0:00:35]} 33. Rf6 {[%clk 0:01:11]}  c4 {[%clk 0:00:33]} 34. h4 {[%clk 0:01:11]}  gxh4 {[%clk 0:00:33]} 35. gxh4 {[%clk 0:01:11]}  Nd3 {[%clk 0:00:30]} 36. Rf1 {[%clk 0:01:08]}  c3 {[%clk 0:00:30]} 37. h5 {[%clk 0:01:08]}  c2 {[%clk 0:00:28]} 38. h6 {[%clk 0:01:09]}  Nf2+ {[%clk 0:00:25]} 39. Kg2 {[%clk 0:01:07]}  Nd1 {[%clk 0:00:25]} 40. h7 {[%clk 0:01:03]}  c1=Q {[%clk 0:00:25]} 41. h8=Q {[%clk 0:01:03]}  Ne3+ {[%clk 0:00:20]} 42. Kf3 {[%clk 0:00:59]}  Nxf1 {[%clk 0:00:13]} 43. Qg7+ {[%clk 0:00:53]}  Ka6 {[%clk 0:00:11]} 44. Qf6+ {[%clk 0:00:50]}  Ka7 {[%clk 0:00:11]} 45. Qe7+ {[%clk 0:00:50]}  Kb8 {[%clk 0:00:10]} 46. Qd8+ {[%clk 0:00:49]}  Kb7 {[%clk 0:00:10]} 47. Qd5+ {[%clk 0:00:49]}  Qc6 {[%clk 0:00:09]} 48. Qxc6+ {[%clk 0:00:46]}  Kxc6 {[%clk 0:00:09]} 49. Ke2 {[%clk 0:00:47]}  Ng3+ {[%clk 0:00:09]} 50. Kd3 {[%clk 0:00:48]}  Nf5 {[%clk 0:00:10]} 51. Kc4 {[%clk 0:00:47]}  Nd6+ {[%clk 0:00:10]} 52. Kb4 {[%clk 0:00:47]}  Kb6 {[%clk 0:00:10]} 53. Kb3 {[%clk 0:00:45]}  Ka5 {[%clk 0:00:10]} 54. Ka3 {[%clk 0:00:45]}  Nb5+ {[%clk 0:00:10]} 55. Kb3 {[%clk 0:00:46]}  Nd4+ {[%clk 0:00:10]} 56. Kc3 {[%clk 0:00:46]}  Nc6 {[%clk 0:00:10]} 57. Kb3 {[%clk 0:00:46]}  Nb4 {[%clk 0:00:10]} 58. a3 {[%clk 0:00:45]}  Na6 {[%clk 0:00:10]} 59. Kc4 {[%clk 0:00:45]}  Ka4 {[%clk 0:00:09]} 60. Kc3 {[%clk 0:00:44]}  Kxa3 {[%clk 0:00:10]} 1/2-1/2


[Site "https://www.chess.com"]

[Event "Titled Tuesday Blitz February 22 Early 2022"]
[White "Thomas, Anysia"]
[Black "Dovbnia, Nikita"]
[WhiteFideId "670472"]
[BlackFideId "54104599"]
[WhiteElo "2002"]
[BlackElo "2111"]
[Result "0-1"]
[Round "09"]
[TimeControl "180+1"]
[Date "2022.02.22"]
[WhiteClock "0:00:05"]
[BlackClock "0:00:15"]

1. d4 {[%clk 0:03:00]}  Nf6 {[%clk 0:02:58]} 2. c4 {[%clk 0:03:00]}  e6 {[%clk 0:02:59]} 3. Nf3 {[%clk 0:03:00]}  Bb4+ {[%clk 0:02:59]} 4. Nbd2 {[%clk 0:02:58]}  Bxd2+ {[%clk 0:03:00]} 5. Qxd2 {[%clk 0:02:57]}  O-O {[%clk 0:03:00]} 6. b3 {[%clk 0:02:54]}  Ne4 {[%clk 0:02:59]} 7. Qc2 {[%clk 0:02:53]}  f5 {[%clk 0:03:00]} 8. e3 {[%clk 0:02:50]}  b6 {[%clk 0:03:01]} 9. Bb2 {[%clk 0:02:50]}  Bb7 {[%clk 0:03:01]} 10. Bd3 {[%clk 0:02:50]}  Ng5 {[%clk 0:03:00]} 11. Be2 {[%clk 0:02:43]}  Nxf3+ {[%clk 0:02:52]} 12. gxf3 {[%clk 0:02:42]}  d6 {[%clk 0:02:51]} 13. O-O-O {[%clk 0:02:40]}  a5 {[%clk 0:02:50]} 14. Rhg1 {[%clk 0:02:28]}  Nd7 {[%clk 0:02:43]} 15. f4 {[%clk 0:02:03]}  Nf6 {[%clk 0:02:39]} 16. f3 {[%clk 0:02:02]}  a4 {[%clk 0:02:37]} 17. Rg2 {[%clk 0:01:52]}  axb3 {[%clk 0:02:32]} 18. axb3 {[%clk 0:01:53]}  Ra2 {[%clk 0:02:20]} 19. Rdg1 {[%clk 0:01:47]}  Rf7 {[%clk 0:02:16]} 20. Qd1 {[%clk 0:01:38]}  Qa8 {[%clk 0:02:09]} 21. Bd3 {[%clk 0:01:38]}  Bxf3 {[%clk 0:02:07]} 22. Qd2 {[%clk 0:00:55]}  Bxg2 {[%clk 0:02:02]} 23. Rxg2 {[%clk 0:00:55]}  Ne4 {[%clk 0:01:59]} 24. Qc2 {[%clk 0:00:36]}  Qa5 {[%clk 0:01:46]} 25. Rg1 {[%clk 0:00:34]}  d5 {[%clk 0:01:39]} 26. h4 {[%clk 0:00:14]}  Rf8 {[%clk 0:01:32]} 27. cxd5 {[%clk 0:00:14]}  exd5 {[%clk 0:01:27]} 28. Qg2 {[%clk 0:00:12]}  g6 {[%clk 0:01:09]} 29. h5 {[%clk 0:00:12]}  Rf6 {[%clk 0:00:38]} 30. Bxe4 {[%clk 0:00:11]}  dxe4 {[%clk 0:00:32]} 31. Qc2 {[%clk 0:00:11]}  Ra1+ {[%clk 0:00:26]} 32. Bxa1 {[%clk 0:00:06]}  Qxa1+ {[%clk 0:00:26]} 33. Qb1 {[%clk 0:00:04]}  Rc6+ {[%clk 0:00:25]} 34. Kd2 {[%clk 0:00:04]}  Qc3+ {[%clk 0:00:14]} 35. Ke2 {[%clk 0:00:04]}  Qc2+ {[%clk 0:00:14]} 36. Qxc2 {[%clk 0:00:03]}  Rxc2+ {[%clk 0:00:15]} 37. Kf1 {[%clk 0:00:04]}  Rc1+ {[%clk 0:00:15]} 38. Kg2 {[%clk 0:00:04]}  Rxg1+ {[%clk 0:00:15]} 39. Kxg1 {[%clk 0:00:05]}  Kf7 {[%clk 0:00:15]} 40. Kf2 {[%clk 0:00:05]}  Ke6 {[%clk 0:00:16]} 41. hxg6 {[%clk 0:00:06]}  hxg6 {[%clk 0:00:15]} 42. Ke2 {[%clk 0:00:07]}  Kd5 {[%clk 0:00:15]} 43. Kd2 {[%clk 0:00:07]}  c5 {[%clk 0:00:16]} 44. dxc5 {[%clk 0:00:06]}  bxc5 {[%clk 0:00:16]} 45. Kc3 {[%clk 0:00:06]}  Kc6 {[%clk 0:00:17]} 46. Kc4 {[%clk 0:00:06]}  Kd6 {[%clk 0:00:17]} 47. Kc3 {[%clk 0:00:06]}  Kd5 {[%clk 0:00:17]} 48. b4 {[%clk 0:00:06]}  cxb4+ {[%clk 0:00:17]} 49. Kxb4 {[%clk 0:00:07]}  Ke6 {[%clk 0:00:17]} 50. Kc4 {[%clk 0:00:08]}  Kf6 {[%clk 0:00:18]} 51. Kd5 {[%clk 0:00:08]}  g5 {[%clk 0:00:18]} 52. fxg5+ {[%clk 0:00:08]}  Kxg5 {[%clk 0:00:19]} 53. Kd4 {[%clk 0:00:08]}  Kg4 {[%clk 0:00:14]} 54. Ke5 {[%clk 0:00:06]}  Kf3 {[%clk 0:00:14]} 55. Kxf5 {[%clk 0:00:06]}  Kxe3 {[%clk 0:00:14]} 56. Kg4 {[%clk 0:00:06]}  Kd2 {[%clk 0:00:14]} 57. Kg3 {[%clk 0:00:05]}  e3 {[%clk 0:00:15]} 0-1


[Site "https://www.chess.com"]

[Event "Titled Tuesday Blitz February 22 Early 2022"]
[White "Timofeev, Artyom"]
[Black "Kollars, Dmitrij"]
[WhiteFideId "4140419"]
[BlackFideId "12909572"]
[WhiteElo "2583"]
[BlackElo "2584"]
[Result "0-1"]
[Round "09"]
[TimeControl "180+1"]
[Date "2022.02.22"]
[WhiteClock "0:00:24"]
[BlackClock "0:00:22"]

1. d4 {[%clk 0:03:00]}  Nf6 {[%clk 0:03:00]} 2. c4 {[%clk 0:03:00]}  e6 {[%clk 0:03:00]} 3. Nc3 {[%clk 0:03:00]}  Bb4 {[%clk 0:03:00]} 4. e3 {[%clk 0:03:00]}  O-O {[%clk 0:03:00]} 5. Bd3 {[%clk 0:03:00]}  d5 {[%clk 0:03:00]} 6. Nf3 {[%clk 0:03:00]}  c5 {[%clk 0:03:00]} 7. O-O {[%clk 0:03:00]}  Nc6 {[%clk 0:02:59]} 8. a3 {[%clk 0:02:59]}  Bxc3 {[%clk 0:02:58]} 9. bxc3 {[%clk 0:02:59]}  Re8 {[%clk 0:02:59]} 10. Bb2 {[%clk 0:02:56]}  b6 {[%clk 0:02:54]} 11. cxd5 {[%clk 0:02:51]}  exd5 {[%clk 0:02:55]} 12. c4 {[%clk 0:02:49]}  dxc4 {[%clk 0:02:27]} 13. Bxc4 {[%clk 0:02:47]}  cxd4 {[%clk 0:02:22]} 14. Nxd4 {[%clk 0:02:47]}  Ne5 {[%clk 0:02:23]} 15. Be2 {[%clk 0:02:44]}  Bb7 {[%clk 0:02:23]} 16. Qb3 {[%clk 0:02:39]}  Ne4 {[%clk 0:02:19]} 17. Rad1 {[%clk 0:02:38]}  Qg5 {[%clk 0:02:12]} 18. f4 {[%clk 0:02:24]}  Qg6 {[%clk 0:02:12]} 19. fxe5 {[%clk 0:02:23]}  Nc5 {[%clk 0:02:08]} 20. Qxf7+ {[%clk 0:02:20]}  Qxf7 {[%clk 0:02:08]} 21. Rxf7 {[%clk 0:02:20]}  Kxf7 {[%clk 0:02:09]} 22. Bc4+ {[%clk 0:02:18]}  Kg6 {[%clk 0:02:01]} 23. Nb5 {[%clk 0:02:16]}  Rad8 {[%clk 0:01:44]} 24. Nd6 {[%clk 0:02:16]}  Re7 {[%clk 0:01:29]} 25. Bd4 {[%clk 0:02:13]}  Ba6 {[%clk 0:01:10]} 26. Ba2 {[%clk 0:02:10]}  Rf8 {[%clk 0:00:55]} 27. Bb1+ {[%clk 0:02:00]}  Kg5 {[%clk 0:00:55]} 28. h3 {[%clk 0:01:30]}  g6 {[%clk 0:00:52]} 29. Bxc5 {[%clk 0:01:02]}  bxc5 {[%clk 0:00:51]} 30. Ne4+ {[%clk 0:01:02]}  Kh6 {[%clk 0:00:51]} 31. Nxc5 {[%clk 0:01:03]}  Bc8 {[%clk 0:00:48]} 32. Rd5 {[%clk 0:00:47]}  Rfe8 {[%clk 0:00:44]} 33. Nd3 {[%clk 0:00:47]}  Bf5 {[%clk 0:00:44]} 34. g4 {[%clk 0:00:38]}  Bxd3 {[%clk 0:00:41]} 35. Bxd3 {[%clk 0:00:34]}  Rxe5 {[%clk 0:00:42]} 36. Rd7 {[%clk 0:00:35]}  R8e7 {[%clk 0:00:41]} 37. Rd6 {[%clk 0:00:33]}  Rxe3 {[%clk 0:00:37]} 38. Kg2 {[%clk 0:00:33]}  Kg5 {[%clk 0:00:34]} 39. a4 {[%clk 0:00:31]}  Kh4 {[%clk 0:00:33]} 40. Rd4 {[%clk 0:00:29]}  Rg3+ {[%clk 0:00:31]} 41. Kf2 {[%clk 0:00:28]}  Kxh3 {[%clk 0:00:28]} 42. g5 {[%clk 0:00:25]}  Rf7+ {[%clk 0:00:25]} 43. Ke1 {[%clk 0:00:24]}  Rxg5 {[%clk 0:00:22]} 0-1


[Site "https://www.chess.com"]

[Event "Titled Tuesday Blitz February 22 Early 2022"]
[White "Todorovic, Bojan"]
[Black "Sanchez Alvares, Kelvin Antonio"]
[WhiteFideId "917087"]
[BlackFideId "3906680"]
[WhiteElo "2266"]
[BlackElo "2193"]
[Result "0-1"]
[Round "09"]
[TimeControl "180+1"]
[Date "2022.02.22"]
[WhiteClock "0:00:01"]
[BlackClock "0:00:02"]

1. Nf3 {[%clk 0:02:59]}  c5 {[%clk 0:02:55]} 2. c4 {[%clk 0:02:58]}  g6 {[%clk 0:02:54]} 3. g3 {[%clk 0:02:57]}  Bg7 {[%clk 0:02:55]} 4. Bg2 {[%clk 0:02:57]}  Nf6 {[%clk 0:02:56]} 5. O-O {[%clk 0:02:57]}  O-O {[%clk 0:02:57]} 6. Nc3 {[%clk 0:02:57]}  Nc6 {[%clk 0:02:57]} 7. a3 {[%clk 0:02:57]}  d5 {[%clk 0:02:57]} 8. cxd5 {[%clk 0:02:52]}  Nxd5 {[%clk 0:02:58]} 9. Nxd5 {[%clk 0:02:50]}  Qxd5 {[%clk 0:02:59]} 10. d3 {[%clk 0:02:50]}  e5 {[%clk 0:02:58]} 11. Be3 {[%clk 0:02:44]}  Qd6 {[%clk 0:02:56]} 12. Rc1 {[%clk 0:02:43]}  Nd4 {[%clk 0:02:50]} 13. b4 {[%clk 0:02:33]}  cxb4 {[%clk 0:02:48]} 14. Nxd4 {[%clk 0:02:29]}  exd4 {[%clk 0:02:45]} 15. Bf4 {[%clk 0:02:29]}  Qb6 {[%clk 0:02:32]} 16. axb4 {[%clk 0:02:24]}  Qxb4 {[%clk 0:02:26]} 17. Rc4 {[%clk 0:02:19]}  Qe7 {[%clk 0:02:21]} 18. Qc2 {[%clk 0:02:17]}  a5 {[%clk 0:02:16]} 19. Rb1 {[%clk 0:02:07]}  Re8 {[%clk 0:02:11]} 20. Bf3 {[%clk 0:01:57]}  g5 {[%clk 0:01:36]} 21. Bc7 {[%clk 0:01:48]}  g4 {[%clk 0:01:31]} 22. Be4 {[%clk 0:01:48]}  Kh8 {[%clk 0:01:25]} 23. Rb2 {[%clk 0:01:23]}  f5 {[%clk 0:01:18]} 24. Bg2 {[%clk 0:01:21]}  a4 {[%clk 0:01:10]} 25. Bb6 {[%clk 0:01:09]}  a3 {[%clk 0:01:08]} 26. Ra2 {[%clk 0:01:09]}  Be6 {[%clk 0:01:03]} 27. Bc5 {[%clk 0:01:08]}  Qf7 {[%clk 0:01:01]} 28. Rxa3 {[%clk 0:00:56]}  Rxa3 {[%clk 0:00:59]} 29. Bxa3 {[%clk 0:00:56]}  Bxc4 {[%clk 0:00:59]} 30. dxc4 {[%clk 0:00:56]}  Ra8 {[%clk 0:00:49]} 31. Qb3 {[%clk 0:00:50]}  Re8 {[%clk 0:00:38]} 32. Kf1 {[%clk 0:00:41]}  Rc8 {[%clk 0:00:18]} 33. Bd5 {[%clk 0:00:40]}  Qd7 {[%clk 0:00:15]} 34. Bb2 {[%clk 0:00:34]}  Rb8 {[%clk 0:00:12]} 35. Qd3 {[%clk 0:00:33]}  b5 {[%clk 0:00:12]} 36. Bxd4 {[%clk 0:00:33]}  bxc4 {[%clk 0:00:12]} 37. Qxc4 {[%clk 0:00:30]}  Rb1+ {[%clk 0:00:10]} 38. Kg2 {[%clk 0:00:30]}  Bxd4 {[%clk 0:00:09]} 39. Qxd4+ {[%clk 0:00:30]}  Qg7 {[%clk 0:00:09]} 40. Qc5 {[%clk 0:00:22]}  Rb8 {[%clk 0:00:08]} 41. Be6 {[%clk 0:00:19]}  Qb7+ {[%clk 0:00:06]} 42. f3 {[%clk 0:00:19]}  gxf3+ {[%clk 0:00:05]} 43. exf3 {[%clk 0:00:18]}  Qb2+ {[%clk 0:00:03]} 44. Kh3 {[%clk 0:00:18]}  Qf6 {[%clk 0:00:04]} 45. Qxf5 {[%clk 0:00:18]}  Rf8 {[%clk 0:00:04]} 46. Qxf6+ {[%clk 0:00:17]}  Rxf6 {[%clk 0:00:05]} 47. Bd5 {[%clk 0:00:17]}  Kg7 {[%clk 0:00:05]} 48. f4 {[%clk 0:00:15]}  h6 {[%clk 0:00:06]} 49. Kg4 {[%clk 0:00:14]}  Rb6 {[%clk 0:00:07]} 50. Be4 {[%clk 0:00:14]}  Kf6 {[%clk 0:00:06]} 51. h4 {[%clk 0:00:11]}  Rb5 {[%clk 0:00:06]} 52. h5 {[%clk 0:00:11]}  Rb3 {[%clk 0:00:05]} 53. Bg6 {[%clk 0:00:11]}  Rc3 {[%clk 0:00:04]} 54. Kh4 {[%clk 0:00:11]}  Rc1 {[%clk 0:00:04]} 55. Kg4 {[%clk 0:00:11]}  Rc3 {[%clk 0:00:04]} 56. Kh3 {[%clk 0:00:11]}  Ke6 {[%clk 0:00:03]} 57. Kh4 {[%clk 0:00:10]}  Kf6 {[%clk 0:00:03]} 58. Kg4 {[%clk 0:00:10]}  Rc4 {[%clk 0:00:03]} 59. Kf3 {[%clk 0:00:10]}  Rb4 {[%clk 0:00:04]} 60. Kf2 {[%clk 0:00:08]}  Ra4 {[%clk 0:00:04]} 61. Ke3 {[%clk 0:00:08]}  Ra3+ {[%clk 0:00:04]} 62. Kf2 {[%clk 0:00:08]}  Ke6 {[%clk 0:00:04]} 63. Kg2 {[%clk 0:00:08]}  Kf6 {[%clk 0:00:03]} 64. Kh3 {[%clk 0:00:08]}  Rb3 {[%clk 0:00:04]} 65. Kg4 {[%clk 0:00:09]}  Rb4 {[%clk 0:00:04]} 66. Kh4 {[%clk 0:00:09]}  Rb3 {[%clk 0:00:04]} 67. Kh3 {[%clk 0:00:10]}  Ra3 {[%clk 0:00:03]} 68. Kg2 {[%clk 0:00:09]}  Ra1 {[%clk 0:00:04]} 69. Kf3 {[%clk 0:00:09]}  Ra2 {[%clk 0:00:05]} 70. Kg4 {[%clk 0:00:09]}  Ra3 {[%clk 0:00:05]} 71. Kh4 {[%clk 0:00:09]}  Ra2 {[%clk 0:00:05]} 72. Kh3 {[%clk 0:00:09]}  Ra1 {[%clk 0:00:05]} 73. Kg4 {[%clk 0:00:09]}  Ra4 {[%clk 0:00:05]} 74. Kh4 {[%clk 0:00:09]}  Ra3 {[%clk 0:00:05]} 75. Kh3 {[%clk 0:00:09]}  Ke6 {[%clk 0:00:05]} 76. Kg4 {[%clk 0:00:09]}  Kd5 {[%clk 0:00:05]} 77. Kh4 {[%clk 0:00:06]}  Kd4 {[%clk 0:00:05]} 78. g4 {[%clk 0:00:05]}  Ke3 {[%clk 0:00:03]} 79. g5 {[%clk 0:00:04]}  Kxf4 {[%clk 0:00:02]} 80. gxh6 {[%clk 0:00:04]}  Ra1 {[%clk 0:00:02]} 81. Kh3 {[%clk 0:00:04]}  Ra8 {[%clk 0:00:01]} 82. h7 {[%clk 0:00:04]}  Rh8 {[%clk 0:00:02]} 83. Kh4 {[%clk 0:00:03]}  Ke5 {[%clk 0:00:01]} 84. Kg5 {[%clk 0:00:03]}  Ke6 {[%clk 0:00:02]} 85. Bf5+ {[%clk 0:00:02]}  Kf7 {[%clk 0:00:02]} 86. Bg6+ {[%clk 0:00:01]}  Kg7 {[%clk 0:00:02]} 0-1


[Site "https://www.chess.com"]

[Event "Titled Tuesday Blitz February 22 Early 2022"]
[White "Tuleyeva-Aketayeva, Dana"]
[Black "Nithyalakshmi, Sivanesan"]
[WhiteFideId "13701932"]
[BlackFideId "5706955"]
[WhiteElo "1944"]
[BlackElo "1815"]
[Result "0-1"]
[Round "09"]
[TimeControl "180+1"]
[Date "2022.02.22"]
[WhiteClock "0:00:01"]
[BlackClock "0:00:02"]

1. d4 {[%clk 0:03:00]}  e6 {[%clk 0:02:59]} 2. Nf3 {[%clk 0:02:59]}  b6 {[%clk 0:02:58]} 3. g3 {[%clk 0:02:59]}  Bb7 {[%clk 0:02:58]} 4. Bg2 {[%clk 0:02:58]}  f5 {[%clk 0:02:59]} 5. O-O {[%clk 0:02:57]}  Nf6 {[%clk 0:02:59]} 6. c4 {[%clk 0:02:57]}  Bb4 {[%clk 0:02:53]} 7. a3 {[%clk 0:02:55]}  Be7 {[%clk 0:02:49]} 8. Nc3 {[%clk 0:02:55]}  d6 {[%clk 0:02:40]} 9. b4 {[%clk 0:02:44]}  O-O {[%clk 0:02:38]} 10. Ng5 {[%clk 0:02:40]}  Bxg2 {[%clk 0:02:37]} 11. Kxg2 {[%clk 0:02:35]}  Qd7 {[%clk 0:02:33]} 12. d5 {[%clk 0:02:25]}  exd5 {[%clk 0:02:20]} 13. Nxd5 {[%clk 0:02:24]}  Nc6 {[%clk 0:02:09]} 14. b5 {[%clk 0:02:19]}  Ne5 {[%clk 0:02:00]} 15. Nxf6+ {[%clk 0:01:48]}  Bxf6 {[%clk 0:01:58]} 16. Qd5+ {[%clk 0:01:48]}  Kh8 {[%clk 0:01:55]} 17. Ne6 {[%clk 0:01:44]}  Rfe8 {[%clk 0:01:50]} 18. Nd4 {[%clk 0:01:37]}  Rab8 {[%clk 0:01:17]} 19. Ra2 {[%clk 0:01:33]}  Ra8 {[%clk 0:00:59]} 20. a4 {[%clk 0:01:30]}  a6 {[%clk 0:00:59]} 21. Bd2 {[%clk 0:01:16]}  axb5 {[%clk 0:00:57]} 22. cxb5 {[%clk 0:01:12]}  g6 {[%clk 0:00:44]} 23. Rc1 {[%clk 0:01:12]}  Ra7 {[%clk 0:00:26]} 24. a5 {[%clk 0:01:01]}  bxa5 {[%clk 0:00:20]} 25. Rxa5 {[%clk 0:01:00]}  Rxa5 {[%clk 0:00:20]} 26. Bxa5 {[%clk 0:01:00]}  Bd8 {[%clk 0:00:17]} 27. Nc6 {[%clk 0:00:52]}  Nxc6 {[%clk 0:00:17]} 28. bxc6 {[%clk 0:00:48]}  Qe6 {[%clk 0:00:16]} 29. Qd4+ {[%clk 0:00:43]}  Bf6 {[%clk 0:00:14]} 30. Qd3 {[%clk 0:00:38]}  Re7 {[%clk 0:00:13]} 31. e3 {[%clk 0:00:34]}  Kg7 {[%clk 0:00:14]} 32. Rb1 {[%clk 0:00:30]}  Qa2 {[%clk 0:00:13]} 33. Bc3 {[%clk 0:00:23]}  Qe6 {[%clk 0:00:11]} 34. Rb7 {[%clk 0:00:18]}  Kf7 {[%clk 0:00:10]} 35. Bxf6 {[%clk 0:00:17]}  Qxf6 {[%clk 0:00:11]} 36. Qc4+ {[%clk 0:00:16]}  Kg7 {[%clk 0:00:11]} 37. Qb5 {[%clk 0:00:14]}  Qf7 {[%clk 0:00:11]} 38. Qa5 {[%clk 0:00:14]}  h6 {[%clk 0:00:10]} 39. Qa8 {[%clk 0:00:13]}  Qd5+ {[%clk 0:00:09]} 40. Kg1 {[%clk 0:00:12]}  Qxc6 {[%clk 0:00:08]} 41. Qa7 {[%clk 0:00:11]}  Qc1+ {[%clk 0:00:05]} 42. Kg2 {[%clk 0:00:11]}  Qc6+ {[%clk 0:00:05]} 43. Kg1 {[%clk 0:00:11]}  Qd7 {[%clk 0:00:05]} 44. Qd4+ {[%clk 0:00:10]}  Kh7 {[%clk 0:00:05]} 45. Rb8 {[%clk 0:00:10]}  Re8 {[%clk 0:00:05]} 46. Rb7 {[%clk 0:00:05]}  Re7 {[%clk 0:00:04]} 47. Rb8 {[%clk 0:00:05]}  Re8 {[%clk 0:00:04]} 48. Rb7 {[%clk 0:00:05]}  Qf7 {[%clk 0:00:03]} 49. Qa4 {[%clk 0:00:02]}  Re7 {[%clk 0:00:03]} 50. Qc2 {[%clk 0:00:01]}  Kg7 {[%clk 0:00:02]} 51. Qc3+ {[%clk 0:00:01]}  Qf6 {[%clk 0:00:02]} 0-1


[Site "https://www.chess.com"]